bitfinex-derivatives/quotes_BTCF0:USTF0_20241226
["timestamp","ask_amount","ask_price","bid_price","bid_amount"]
[1735247432110,0.2468,95496.0,95453.0,0.1319]
[1735247432111,0.001,95476.0,95460.0,0.07657553]
[1735247432311,0.053424,95476.0,95460.0,0.07657553]
[1735247432616,0.053424,95476.0,95467.0,0.052428]
[1735247432915,0.001,95476.0,95473.0,0.052425]
[1735247433509,0.001,95474.0,95466.0,0.052429]
[1735247433714,0.001,95474.0,95465.0,0.002]
[1735247434119,0.001,95476.0,95473.0,0.054425]
[1735247434420,0.001,95476.0,95474.0,0.052424]
[1735247434623,0.1331,95495.0,95474.0,0.052424]
[1735247434824,0.052421,95482.0,95474.0,0.052424]
[1735247435317,0.1331,95495.0,95474.0,0.052424]
[1735247435521,0.07657553,95490.0,95473.0,0.002]
[1735247435721,0.052424,95476.0,95473.0,0.002]
[1735247435919,0.07657553,95490.0,95473.0,0.002]
[1735247436126,0.052425,95475.0,95473.0,0.002]
[1735247437222,0.052427,95470.0,95463.0,0.02124749]
[1735247437422,0.052428,95468.0,95462.0,0.052431]
[1735247437724,0.05243,95465.0,95462.0,0.052431]
[1735247438022,0.052419,95484.0,95454.0,0.1265]
[1735247438225,0.052429,95468.0,95462.0,0.052431]
[1735247438728,0.053429,95468.0,95462.0,0.054431]
[1735247439132,0.053429,95468.0,95462.0,0.002]
[1735247439320,0.001,95468.0,95462.0,0.002]
[1735247439627,0.001,95468.0,95467.0,0.052429]
[1735247440030,0.052418,95486.0,95467.0,0.052429]
[1735247440324,0.052418,95488.0,95468.0,0.052428]
[1735247440525,0.052424,95475.0,95468.0,0.052428]
[1735247440722,0.052424,95475.0,95471.0,0.052426]
[1735247440918,0.052421,95482.0,95476.0,0.052424]
[1735247441120,0.05242,95482.0,95477.0,0.052423]
[1735247441323,0.07657553,95490.0,95467.0,0.002]
[1735247441526,0.052424,95476.0,95473.0,0.052425]
[1735247441829,0.07657553,95490.0,95473.0,0.052425]
[1735247442025,0.052414,95494.0,95473.0,0.052425]
[1735247442822,0.052424,95475.0,95473.0,0.052425]
[1735247443935,0.052424,95475.0,95473.0,0.053425]
[1735247444833,0.053424,95475.0,95473.0,0.056425]
[1735247445134,0.053424,95475.0,95474.0,0.24969454]
[1735247446038,0.053424,95475.0,95473.0,0.056425]
[1735247446732,0.052424,95475.0,95473.0,0.052425]
[1735247447035,0.052424,95475.0,95473.0,0.053425]
[1735247447334,0.052424,95475.0,95474.0,0.71988355]
[1735247448336,0.1331,95495.0,95474.0,0.40776537]
[1735247448534,0.1331,95495.0,95480.0,0.07657553]
[1735247448726,0.052414,95493.0,95481.0,0.052421]
[1735247448926,0.052418,95486.0,95477.0,0.052423]
[1735247449127,0.07657553,95490.0,95474.0,0.40832537]
[1735247449432,0.1331,95495.0,95474.0,0.40832537]
[1735247449433,0.052424,95477.0,95476.0,0.052423]
[1735247450323,0.001,95493.0,95480.0,0.052421]
[1735247450630,0.052421,95482.0,95480.0,0.052421]
[1735247451229,0.052418,95488.0,95486.0,0.052418]
[1735247452835,0.052421,95481.0,95480.0,0.052421]
[1735247453139,0.052421,95481.0,95480.0,0.054421]
[1735247453632,0.052421,95481.0,95480.0,0.052421]
[1735247454225,0.052421,95481.0,95480.0,0.054421]
[1735247454624,0.052421,95481.0,95480.0,0.053421]
[1735247456926,0.1331,95495.0,95484.0,0.052419]
[1735247456927,0.052419,95485.0,95484.0,0.052419]
[1735247458333,0.053419,95485.0,95484.0,0.052419]
[1735247461842,0.001,95485.0,95484.0,0.052419]
[1735247463127,0.052417,95489.0,95483.0,0.25107507]
[1735247463438,0.001,95485.0,95484.0,0.052419]
[1735247464027,0.053419,95485.0,95484.0,0.052419]
[1735247464227,0.052414,95494.0,95479.0,0.31362273]
[1735247464431,0.1331,95495.0,95482.0,0.25123701]
[1735247464841,0.05242,95483.0,95482.0,0.25123701]
[1735247465734,0.05242,95482.0,95481.0,0.05242]
[1735247467145,0.05242,95482.0,95481.0,0.05342]
[1735247467546,0.05242,95482.0,95481.0,0.05242]
[1735247467742,0.05242,95482.0,95481.0,0.05342]
[1735247469246,0.185513,95495.0,95494.0,0.052414]
[1735247469449,0.01939646,95505.0,95501.0,0.05241]
[1735247469650,0.052406,95509.0,95501.0,0.05241]
[1735247469842,0.052405,95510.0,95501.0,0.05241]
[1735247470146,0.052406,95508.0,95501.0,0.05241]
[1735247470537,0.052408,95506.0,95501.0,0.05241]
[1735247470741,0.304902,95516.0,95515.0,0.052402]
[1735247470933,0.052396,95526.0,95525.0,0.052396]
[1735247471543,0.052393,95532.0,95531.0,0.052393]
[1735247473043,0.060393,95532.0,95531.0,0.052393]
[1735247473941,0.064393,95532.0,95531.0,0.052393]
[1735247475346,0.052394,95530.0,95520.0,0.052399]
[1735247475541,0.07657553,95530.0,95520.0,0.052399]
[1735247475748,0.052399,95521.0,95520.0,0.052399]
[1735247476547,0.07657553,95530.0,95499.0,0.35224]
[1735247476746,0.052409,95503.0,95502.0,0.052409]
[1735247477448,0.052411,95500.0,95499.0,0.35224]
[1735247478145,0.052417,95489.0,95480.0,0.00157096]
[1735247478454,0.052417,95489.0,95488.0,0.052417]
[1735247480051,0.052402,95515.0,95480.0,0.01931209]
[1735247480052,0.052412,95498.0,95497.0,0.052412]
[1735247480254,0.052402,95515.0,95488.0,0.004]
[1735247480554,0.05241,95501.0,95488.0,0.004]
[1735247481247,0.001,95489.0,95488.0,0.056417]
[1735247481453,0.053417,95489.0,95488.0,0.056417]
[1735247481753,0.052417,95489.0,95488.0,0.056417]
[1735247482252,0.052419,95485.0,95484.0,0.052419]
[1735247483547,0.053419,95485.0,95484.0,0.056419]
[1735247485444,0.052419,95485.0,95484.0,0.056419]
[1735247485649,0.053419,95485.0,95484.0,0.056419]
[1735247487350,0.052412,95498.0,95484.0,0.056419]
[1735247487549,0.052412,95498.0,95497.0,0.052412]
[1735247489257,0.052415,95492.0,95490.0,0.052416]
[1735247489458,0.052415,95492.0,95491.0,0.052415]
[1735247491958,0.052415,95492.0,95491.0,0.055415]
[1735247492957,0.052415,95492.0,95491.0,0.003]
[1735247493555,0.052417,95488.0,95487.0,0.052417]
[1735247494954,0.052421,95482.0,95481.0,0.052421]
[1735247495356,0.1318,95490.0,95480.0,0.01931209]
[1735247495558,0.052416,95490.0,95486.0,0.052418]
[1735247495767,0.052417,95489.0,95486.0,0.052418]
[1735247496066,0.052417,95488.0,95487.0,0.056418]
[1735247496558,0.052417,95488.0,95487.0,0.052418]
[1735247498062,0.052417,95488.0,95487.0,0.055418]
[1735247507767,0.052417,95488.0,95487.0,0.052418]
[1735247507964,0.052417,95488.0,95487.0,0.055418]
[1735247509078,0.052417,95488.0,95487.0,0.052418]
[1735247509262,0.052417,95488.0,95487.0,0.003]
[1735247511563,0.052419,95484.0,95483.0,0.05242]
[1735247512765,0.052419,95484.0,95483.0,0.05642]
[1735247513968,0.07657553,95510.0,95483.0,0.004]
[1735247514174,0.052414,95495.0,95494.0,0.052414]
[1735247514372,0.2507,95503.0,95483.0,0.004]
[1735247514373,0.01599513,95518.0,95485.0,0.07657553]
[1735247514675,0.052402,95515.0,95511.0,0.052404]
[1735247514864,0.07657553,95520.0,95511.0,0.052404]
[1735247514865,0.05397503,95512.0,95511.0,0.052404]
[1735247515170,0.00157103,95512.0,95511.0,0.052404]
[1735247516075,0.00757103,95512.0,95511.0,0.052404]
[1735247516370,0.00757103,95512.0,95511.0,0.06850281]
[1735247517070,0.01057103,95512.0,95511.0,0.06850281]
[1735247521977,0.009,95512.0,95511.0,0.06850281]
[1735247522681,0.061404,95512.0,95511.0,0.052404]
[1735247523773,0.009,95512.0,95511.0,0.052404]
[1735247525071,0.003,95512.0,95511.0,0.053404]
[1735247525379,0.1263,95530.0,95511.0,0.053404]
[1735247525380,0.1263,95530.0,95529.0,0.052395]
[1735247527981,0.1353,95530.0,95529.0,0.052395]
[1735247535979,0.009,95530.0,95529.0,0.052395]
[1735247536174,0.0075718,95530.0,95529.0,0.052395]
[1735247536383,0.1299,95549.0,95522.0,0.01622209]
[1735247536688,0.1299,95549.0,95520.0,0.20555006]
[1735247536689,0.00157045,95550.0,95549.0,0.052384]
[1735247536985,0.00157045,95550.0,95520.0,0.09242574]
[1735247537287,0.07814598,95550.0,95520.0,0.01585021]
[1735247537483,0.07814598,95550.0,95520.0,0.07657553]
[1735247537683,0.001,95530.0,95520.0,0.07657553]
[1735247537987,0.001,95530.0,95529.0,0.052395]
[1735247538188,0.054394,95530.0,95529.0,0.059395]
[1735247538381,0.053394,95530.0,95529.0,0.059395]
[1735247538577,0.053394,95530.0,95529.0,0.052395]
[1735247538777,0.052394,95530.0,95529.0,0.052395]
[1735247539184,0.052391,95536.0,95535.0,0.052391]
[1735247539390,0.1247,95537.0,95536.0,0.052391]
[1735247541681,0.1247,95537.0,95536.0,0.053391]
[1735247541985,0.00157045,95550.0,95549.0,0.052384]
[1735247543589,0.3799,95567.0,95549.0,0.052384]
[1735247543894,0.052379,95558.0,95557.0,0.052379]
[1735247544888,0.052383,95550.0,95539.0,0.1238]
[1735247545094,0.052384,95548.0,95547.0,0.052384]
[1735247545597,0.052388,95541.0,95540.0,0.052389]
[1735247548097,0.052388,95541.0,95540.0,0.053389]
[1735247548594,0.052388,95541.0,95540.0,0.055389]
[1735247553292,0.052388,95541.0,95540.0,0.053389]
[1735247553492,0.052388,95541.0,95540.0,0.055389]
[1735247554589,0.052388,95541.0,95540.0,0.003]
[1735247555493,0.052388,95541.0,95540.0,0.001]
[1735247555699,0.052388,95541.0,95540.0,0.002]
[1735247556091,0.052388,95541.0,95540.0,0.001]
[1735247556794,0.1247,95546.0,95534.0,0.052392]
[1735247556994,0.14004627,95546.0,95534.0,0.052392]
[1735247557192,0.052391,95535.0,95534.0,0.052392]
[1735247558597,0.052391,95535.0,95534.0,0.053392]
[1735247558991,0.052391,95535.0,95534.0,0.055392]
[1735247559197,0.052389,95541.0,95540.0,0.052386]
[1735247561293,0.052391,95536.0,95535.0,0.052391]
[1735247562810,0.052388,95541.0,95540.0,0.052387]
[1735247565508,0.053388,95541.0,95540.0,0.052387]
[1735247565904,0.052388,95541.0,95540.0,0.052387]
[1735247567303,0.1247,95546.0,95515.0,0.31169079]
[1735247567608,0.052395,95530.0,95529.0,0.052394]
[1735247569211,0.052395,95530.0,95529.0,0.056394]
[1735247569510,0.052395,95530.0,95529.0,0.052394]
[1735247569708,0.052395,95530.0,95529.0,0.056394]
[1735247570109,0.052395,95530.0,95529.0,0.058394]
[1735247570805,0.052395,95530.0,95529.0,0.056394]
[1735247571012,0.052395,95530.0,95529.0,0.054394]
[1735247571313,0.052395,95530.0,95529.0,0.057394]
[1735247575909,0.052395,95530.0,95529.0,0.052394]
[1735247576112,0.052395,95530.0,95529.0,0.057394]
[1735247579109,0.052395,95530.0,95529.0,0.056394]
[1735247579413,0.052395,95530.0,95529.0,0.055394]
[1735247580308,0.052395,95530.0,95529.0,0.054394]
[1735247580507,0.052395,95530.0,95529.0,0.055394]
[1735247583009,0.052395,95530.0,95529.0,0.003]
[1735247583218,0.07657553,95540.0,95512.0,0.18789079]
[1735247583514,0.052402,95515.0,95512.0,0.18789079]
[1735247584313,0.052402,95515.0,95509.0,0.00157028]
[1735247584503,0.052402,95515.0,95514.0,0.35812]
[1735247585019,0.053402,95515.0,95514.0,0.35812]
[1735247585214,0.053402,95515.0,95514.0,0.006]
[1735247585414,0.052402,95515.0,95486.0,0.18789079]
[1735247585618,0.052412,95497.0,95496.0,0.052412]
[1735247587320,0.053412,95497.0,95496.0,0.055412]
[1735247587509,0.054412,95497.0,95496.0,0.058412]
[1735247588819,0.053412,95497.0,95496.0,0.055412]
[1735247589020,0.054412,95497.0,95496.0,0.059412]
[1735247589622,0.053412,95497.0,95496.0,0.055412]
[1735247589920,0.053412,95497.0,95496.0,0.059412]
[1735247590120,0.053412,95497.0,95496.0,0.061412]
[1735247590512,0.053412,95497.0,95496.0,0.056412]
[1735247590513,0.052412,95497.0,95496.0,0.056412]
[1735247590713,0.053412,95497.0,95496.0,0.061412]
[1735247591116,0.052412,95497.0,95496.0,0.061412]
[1735247591319,0.053412,95497.0,95496.0,0.061412]
[1735247591714,0.052412,95497.0,95496.0,0.056412]
[1735247591920,0.053412,95497.0,95496.0,0.061412]
[1735247592225,0.052406,95509.0,95496.0,0.061412]
[1735247592226,0.052401,95518.0,95517.0,0.0524]
[1735247592416,0.052398,95523.0,95519.0,0.0524]
[1735247593722,0.001,95520.0,95519.0,0.0524]
[1735247593923,0.00242925,95520.0,95519.0,0.0524]
[1735247594316,0.00242925,95520.0,95519.0,0.06658078]
[1735247594515,0.3847,95549.0,95519.0,0.06658078]
[1735247594726,0.052388,95542.0,95541.0,0.052388]
[1735247595219,0.052393,95533.0,95531.0,0.052393]
[1735247595418,0.052393,95532.0,95531.0,0.052393]
[1735247596021,0.052389,95539.0,95520.0,0.3537303]
[1735247596221,0.07657553,95541.0,95520.0,0.4061293]
[1735247596420,0.052399,95521.0,95520.0,0.4061293]
[1735247597316,0.052399,95521.0,95520.0,0.3607303]
[1735247597924,0.053399,95521.0,95520.0,0.3607303]
[1735247598917,0.053399,95521.0,95520.0,0.3647303]
[1735247599314,0.053399,95521.0,95520.0,0.0125703]
[1735247599724,0.001,95521.0,95495.0,0.35212]
[1735247599928,0.001,95521.0,95501.0,0.052409]
[1735247599929,0.07657553,95520.0,95501.0,0.052409]
[1735247600229,0.052409,95502.0,95501.0,0.052409]
[1735247601325,0.053409,95502.0,95501.0,0.058409]
[1735247601828,0.053409,95502.0,95501.0,0.07192088]
[1735247602030,0.053409,95502.0,95501.0,0.07392088]
[1735247602429,0.053409,95502.0,95501.0,0.02151188]
[1735247602618,0.053409,95502.0,95501.0,0.008]
[1735247603221,0.053409,95502.0,95470.0,0.07657553]
[1735247603428,0.052419,95484.0,95470.0,0.07657553]
[1735247603630,0.052419,95484.0,95483.0,0.05242]
[1735247604729,0.053419,95484.0,95483.0,0.05242]
[1735247605135,0.052419,95484.0,95483.0,0.05242]
[1735247605320,0.053419,95484.0,95483.0,0.05242]
[1735247606320,0.0524,95519.0,95517.0,0.052401]
[1735247606526,0.0524,95519.0,95494.0,0.052413]
[1735247606527,0.052405,95512.0,95511.0,0.052404]
[1735247606820,0.052401,95518.0,95515.0,0.052402]
[1735247607033,0.1239,95519.0,95515.0,0.052402]
[1735247607034,0.052401,95517.0,95515.0,0.052402]
[1735247608322,0.1239,95519.0,95494.0,0.01371758]
[1735247608522,0.07657553,95510.0,95487.0,0.12094]
[1735247608728,0.2534,95509.0,95487.0,0.1203]
[1735247608926,0.07657553,95500.0,95481.0,0.18789079]
[1735247609127,0.052418,95488.0,95487.0,0.052418]
[1735247610539,0.053418,95488.0,95487.0,0.052418]
[1735247611540,0.052418,95488.0,95487.0,0.052418]
[1735247611729,0.053418,95488.0,95487.0,0.052418]
[1735247614539,0.052422,95479.0,95478.0,0.052423]
[1735247616139,0.3821,95487.0,95467.0,0.0015711]
[1735247616341,0.052423,95477.0,95476.0,0.052424]
[1735247617944,0.053423,95477.0,95476.0,0.052424]
[1735247618337,0.052423,95477.0,95476.0,0.052424]
[1735247618628,0.053423,95477.0,95476.0,0.052424]
[1735247619030,0.054423,95477.0,95476.0,0.052424]
[1735247619632,0.053423,95477.0,95476.0,0.052424]
[1735247619832,0.002,95477.0,95476.0,0.052424]
[1735247621043,0.001,95477.0,95476.0,0.052424]
[1735247621347,0.002,95477.0,95476.0,0.052424]
[1735247622350,0.001,95477.0,95476.0,0.052424]
[1735247623136,0.052417,95488.0,95476.0,0.052424]
[1735247623336,0.001,95477.0,95476.0,0.052424]
[1735247624443,0.053417,95488.0,95476.0,0.052424]
[1735247624644,0.001,95488.0,95478.0,0.07657553]
[1735247624846,0.052418,95486.0,95478.0,0.07657553]
[1735247625148,0.052418,95486.0,95484.0,0.052419]
[1735247625342,0.052418,95486.0,95478.0,0.07657553]
[1735247625343,0.001,95488.0,95487.0,0.052418]
[1735247626042,0.052415,95491.0,95488.0,0.052417]
[1735247626246,0.052416,95490.0,95488.0,0.052417]
[1735247627034,0.07657553,95500.0,95478.0,0.01359114]
[1735247627343,0.05242,95483.0,95480.0,0.07657553]
[1735247627543,0.05242,95483.0,95473.0,0.07657553]
[1735247628044,0.052421,95482.0,95480.0,0.052421]
[1735247629149,0.052414,95494.0,95492.0,0.052415]
[1735247629448,0.052414,95493.0,95492.0,0.052415]
[1735247630951,0.053414,95493.0,95492.0,0.052415]
[1735247631247,0.052418,95488.0,95486.0,0.052418]
[1735247631448,0.001,95493.0,95486.0,0.052418]
[1735247631651,0.052418,95487.0,95486.0,0.052418]
[1735247631849,0.052421,95482.0,95481.0,0.052421]
[1735247633550,0.053421,95482.0,95481.0,0.052421]
[1735247634050,0.054421,95482.0,95481.0,0.052421]
[1735247635952,0.054421,95482.0,95481.0,0.06524494]
[1735247636551,0.053421,95482.0,95481.0,0.06524494]
[1735247636747,0.054421,95482.0,95481.0,0.06524494]
[1735247637053,0.053421,95482.0,95481.0,0.06524494]
[1735247642359,0.054421,95482.0,95481.0,0.06524494]
[1735247642847,0.053421,95482.0,95481.0,0.06524494]
[1735247643856,0.001,95482.0,95481.0,0.06524494]
[1735247645160,0.052415,95493.0,95492.0,0.052415]
[1735247651861,0.05242,95482.0,95473.0,0.052425]
[1735247652157,0.052415,95493.0,95473.0,0.052425]
[1735247652358,0.1202,95481.0,95473.0,0.052425]
[1735247652552,0.052424,95475.0,95473.0,0.052425]
[1735247653854,0.053424,95475.0,95473.0,0.052425]
[1735247654560,0.054424,95475.0,95473.0,0.052425]
[1735247655565,0.053424,95475.0,95473.0,0.052425]
[1735247655762,0.054424,95475.0,95473.0,0.052425]
[1735247656664,0.053424,95475.0,95473.0,0.052425]
[1735247656858,0.054424,95475.0,95473.0,0.052425]
[1735247657455,0.053424,95475.0,95473.0,0.052425]
[1735247657654,0.052424,95475.0,95473.0,0.052425]
[1735247657861,0.053424,95475.0,95473.0,0.052425]
[1735247658252,0.001,95475.0,95472.0,0.01273771]
[1735247658462,0.052428,95468.0,95462.0,0.54005079]
[1735247658663,0.052428,95468.0,95462.0,0.54061079]
[1735247659054,0.052428,95468.0,95464.0,0.0131312]
[1735247659254,0.052428,95468.0,95462.0,0.35272]
[1735247660151,0.052428,95468.0,95462.0,0.36536066]
[1735247660355,0.053428,95468.0,95462.0,0.36536066]
[1735247660763,0.054428,95468.0,95462.0,0.36536066]
[1735247661067,0.053428,95468.0,95462.0,0.36536066]
[1735247663563,0.053428,95468.0,95462.0,0.35272]
[1735247664471,0.052431,95463.0,95462.0,0.35272]
[1735247664763,0.052431,95463.0,95462.0,0.35216]
[1735247665473,0.052431,95463.0,95462.0,0.404591]
[1735247666060,0.053431,95463.0,95462.0,0.35216]
[1735247666773,0.052436,95453.0,95452.0,0.0123993]
[1735247668569,0.053436,95453.0,95452.0,0.0123993]
[1735247669873,0.053436,95453.0,95450.0,5.00056]
[1735247669874,0.052437,95451.0,95450.0,5.00056]
[1735247670064,0.052437,95451.0,95450.0,5.0]
[1735247671068,0.052437,95451.0,95450.0,5.052438]
[1735247671464,0.053437,95451.0,95450.0,5.06456624]
[1735247674376,0.053437,95451.0,95450.0,5.01212824]
[1735247678469,0.053437,95451.0,95450.0,5.0]
[1735247680065,0.052437,95451.0,95450.0,5.0]
[1735247680263,0.053437,95451.0,95450.0,5.0]
[1735247680969,0.052437,95451.0,95450.0,5.0]
[1735247687383,0.053437,95451.0,95450.0,5.0]
[1735247690782,0.052437,95451.0,95450.0,5.0]
[1735247690982,0.054437,95451.0,95450.0,5.0]
[1735247693985,0.053437,95451.0,95450.0,5.0]
[1735247694684,0.052437,95451.0,95450.0,5.0]
[1735247696890,0.053437,95451.0,95450.0,5.0]
[1735247697389,0.052437,95451.0,95450.0,5.0]
[1735247708199,0.0523817,95451.0,95450.0,5.0]
[1735247708390,0.0523817,95451.0,95450.0,3.19]
[1735247709798,0.0523817,95451.0,95450.0,3.030811]
[1735247710302,0.0523817,95451.0,95450.0,2.849253]
[1735247710499,0.0533817,95451.0,95450.0,2.849253]
[1735247711195,0.0543817,95451.0,95450.0,2.849253]
[1735247711587,0.0543817,95451.0,95450.0,2.50859479]
[1735247713097,0.0543817,95451.0,95450.0,2.24507679]
[1735247713298,0.3543817,95451.0,95450.0,1.82729026]
[1735247713599,0.0543817,95451.0,95450.0,1.82729026]
[1735247714491,0.0553817,95451.0,95450.0,1.82729026]
[1735247715398,0.0553817,95451.0,95450.0,1.63239026]
[1735247715794,0.0563817,95451.0,95450.0,1.63239026]
[1735247716001,0.0563817,95451.0,95394.0,0.052468]
[1735247716002,0.0036,95442.0,95394.0,0.052468]
[1735247716203,0.052462,95406.0,95399.0,0.1214]
[1735247716503,0.052465,95401.0,95399.0,0.1214]
[1735247716698,0.052465,95401.0,95400.0,5.11185714]
[1735247718400,0.053465,95401.0,95400.0,5.11185714]
[1735247718998,0.054465,95401.0,95400.0,5.1]
[1735247719999,0.01212804,95411.0,95400.0,5.1]
[1735247720198,0.052449,95431.0,95400.0,5.1]
[1735247720405,0.07657553,95420.0,95400.0,5.1]
[1735247720610,0.002,95401.0,95400.0,5.1]
[1735247721299,0.001,95401.0,95400.0,5.1]
[1735247722005,0.001,95411.0,95400.0,5.1]
[1735247722211,0.001,95411.0,95400.0,5.17657553]
[1735247722398,0.001,95411.0,95407.0,0.052461]
[1735247722598,0.052459,95412.0,95407.0,0.052461]
[1735247722800,0.01363319,95426.0,95407.0,0.052461]
[1735247723000,0.052459,95413.0,95407.0,0.052461]
[1735247723201,0.001,95411.0,95407.0,0.052461]
[1735247723402,0.05246,95410.0,95407.0,0.052461]
[1735247723606,0.052462,95407.0,95402.0,0.052464]
[1735247723907,0.052462,95407.0,95403.0,0.052464]
[1735247724516,0.052462,95407.0,95405.0,0.052462]
[1735247724800,0.001,95412.0,95405.0,0.052462]
[1735247725002,0.001,95412.0,95400.0,5.10264]
[1735247725206,0.00157266,95426.0,95400.0,5.17857553]
[1735247725503,0.07657553,95460.0,95416.0,0.07657553]
[1735247725706,0.32465191,95449.0,95429.0,0.07657553]
[1735247725905,0.32465191,95449.0,95433.0,0.052447]
[1735247726106,0.052442,95443.0,95441.0,0.052443]
[1735247726299,0.052442,95443.0,95439.0,0.07657553]
[1735247726300,0.31271017,95449.0,95442.0,0.2471]
[1735247726504,0.31271017,95449.0,95447.0,0.052439]
[1735247726806,0.052436,95454.0,95447.0,0.052439]
[1735247727006,0.052436,95454.0,95448.0,0.052439]
[1735247727207,0.052436,95454.0,95442.0,0.2471]
[1735247727400,0.052436,95454.0,95449.0,0.052438]
[1735247728611,0.056436,95454.0,95449.0,0.052438]
[1735247728810,0.05244,95447.0,95442.0,0.2471]
[1735247729108,0.004,95454.0,95442.0,0.2471]
[1735247729300,0.004,95454.0,95451.0,0.052437]
[1735247729502,0.006,95454.0,95451.0,0.052437]
[1735247729702,0.006,95454.0,95452.0,0.052437]
[1735247730308,0.006,95454.0,95453.0,0.1298]
[1735247731099,0.052435,95456.0,95453.0,0.1298]
[1735247731308,0.001,95454.0,95453.0,0.1298]
[1735247731707,0.006,95454.0,95453.0,0.1298]
[1735247732009,0.008,95454.0,95453.0,0.1298]
[1735247738116,0.008,95454.0,95448.0,0.01172896]
[1735247738321,0.008,95454.0,95442.0,0.1231]
[1735247738617,0.052442,95444.0,95442.0,0.1231]
[1735247740009,0.052438,95450.0,95442.0,0.1231]
[1735247740207,0.008,95454.0,95442.0,0.1231]
[1735247740208,0.007,95454.0,95442.0,0.1231]
[1735247740409,0.052426,95473.0,95468.0,0.052428]
[1735247740607,0.052416,95491.0,95468.0,0.052428]
[1735247740809,0.01173598,95489.0,95468.0,0.052428]
[1735247741008,0.052427,95470.0,95468.0,0.052428]
[1735247741211,0.052434,95458.0,95457.0,0.3524]
[1735247741811,0.01057194,95469.0,95457.0,0.3524]
[1735247742122,0.052431,95463.0,95461.0,0.052432]
[1735247742619,0.052434,95458.0,95457.0,0.3524]
[1735247742807,0.053434,95458.0,95457.0,0.3524]
[1735247743919,0.053434,95458.0,95457.0,0.3534]
[1735247744319,0.052434,95458.0,95457.0,0.3534]
[1735247745020,0.052434,95458.0,95457.0,0.3544]
[1735247745509,0.052434,95458.0,95457.0,0.002]
[1735247745910,0.052434,95458.0,95422.0,0.1196]
[1735247746115,0.052436,95453.0,95432.0,0.052448]
[1735247746314,0.052446,95436.0,95433.0,0.052447]
[1735247747214,0.052439,95449.0,95422.0,0.1196]
[1735247747415,0.052439,95449.0,95422.0,0.1216]
[1735247747713,0.052442,95443.0,95422.0,0.003]
[1735247747913,0.052453,95423.0,95422.0,0.003]
[1735247748116,0.052453,95423.0,95422.0,0.001]
[1735247748306,0.052446,95435.0,95422.0,0.001]
[1735247748511,0.052453,95423.0,95422.0,0.001]
[1735247750521,0.053453,95423.0,95422.0,0.001]
[1735247751619,0.053453,95423.0,95417.0,0.405496]
[1735247751925,0.054453,95423.0,95422.0,0.001]
[1735247752817,0.052455,95419.0,95417.0,0.3544]
[1735247753328,0.052455,95419.0,95417.0,0.002]
[1735247753623,0.052455,95419.0,95417.0,0.001]
[1735247754325,0.052456,95418.0,95417.0,0.001]
[1735247755119,0.052456,95418.0,95417.0,0.002]
[1735247755629,0.053456,95418.0,95417.0,0.002]
[1735247755817,0.053456,95418.0,95417.0,0.001]
[1735247756013,0.053456,95418.0,95417.0,0.002]
[1735247757721,0.052456,95418.0,95417.0,0.001]
[1735247757916,0.053456,95418.0,95417.0,0.002]
[1735247758327,0.052465,95401.0,95400.0,5.1]
[1735247759534,0.052465,95401.0,95400.0,5.101]
[1735247759829,0.052465,95401.0,95400.0,5.102]
[1735247760419,0.052465,95401.0,95400.0,4.902019]
[1735247761026,0.052465,95401.0,95400.0,4.901019]
[1735247761727,0.053465,95401.0,95400.0,4.901019]
[1735247762220,0.054465,95401.0,95400.0,4.900019]
[1735247762817,0.053465,95401.0,95400.0,4.900019]
[1735247763031,0.052465,95401.0,95400.0,4.900019]
[1735247765336,0.053465,95401.0,95400.0,4.900019]
[1735247770327,0.052456,95418.0,95411.0,0.052459]
[1735247770535,0.12,95429.0,95405.0,0.052463]
[1735247770536,0.0115461,95420.0,95405.0,0.052463]
[1735247770722,0.07657553,95430.0,95406.0,0.1213]
[1735247770928,0.07657553,95430.0,95414.0,0.052457]
[1735247771135,0.07657553,95430.0,95406.0,0.1213]
[1735247771333,0.05246,95411.0,95409.0,0.05246]
[1735247771936,0.052461,95408.0,95401.0,0.1287]
[1735247772135,0.052464,95402.0,95400.0,4.900579]
[1735247772433,0.052464,95402.0,95400.0,4.900019]
[1735247773229,0.053464,95402.0,95400.0,4.900019]
[1735247773630,0.053464,95402.0,95401.0,0.119]
[1735247774436,0.054464,95402.0,95401.0,0.119]
[1735247774837,0.052464,95402.0,95401.0,0.119]
[1735247775040,0.053464,95402.0,95401.0,0.121]
[1735247778237,0.001,95402.0,95401.0,0.121]
[1735247780942,0.001,95402.0,95401.0,0.13273778]
[1735247782849,0.001,95402.0,95401.0,0.18520278]
[1735247783443,0.001,95402.0,95401.0,0.173465]
[1735247783641,0.053464,95402.0,95401.0,0.121]
[1735247786453,0.053464,95402.0,95401.0,0.172465]
[1735247786759,0.052464,95402.0,95401.0,0.171465]
[1735247787052,0.052462,95407.0,95406.0,0.052462]
[1735247787251,0.052447,95433.0,95401.0,0.12]
[1735247787452,0.052447,95433.0,95410.0,0.07657553]
[1735247787749,0.052455,95419.0,95411.0,0.2472]
[1735247788755,0.052455,95419.0,95418.0,0.052456]
[1735247790046,0.055455,95419.0,95418.0,0.052456]
[1735247790546,0.056455,95419.0,95418.0,0.052456]
[1735247792157,0.055455,95419.0,95418.0,0.052456]
[1735247794267,0.003,95419.0,95418.0,0.052456]
[1735247800066,0.003,95419.0,95415.0,0.0114776]
[1735247800265,0.003,95419.0,95409.0,0.07657553]